fUSD/lending_fUSD_20250609
["ID","MTS","AMOUNT","RATE_DAILY","PERIOD"]
[365120606,1749475839874,-2000.0,0.00019999,2]
[365120607,1749475839883,-1464.2548,0.00019999,2]
[365120608,1749475839893,-1000.0,0.00019999,2]
[365120609,1749475839903,-2003.28265023,0.00019999,2]
[365120610,1749475839913,-553.21,0.00019999,2]
[365120611,1749475839924,-150.0,0.00019999,2]
[365120612,1749475839933,-500.0,0.00019999,2]
[365120613,1749475839944,-500.0,0.00019999,2]
[365120614,1749475839953,-500.0,0.00019999,2]
[365120615,1749475839964,-500.0,0.00019999,2]
[365120616,1749475839973,-500.0,0.00019999,2]
[365120617,1749475839983,-500.0,0.00019999,2]
[365120618,1749475839992,-500.0,0.00019999,2]
[365120619,1749475840002,-500.0,0.00019999,2]
[365120620,1749475840011,-500.0,0.00019999,2]
[365120621,1749475840020,-500.0,0.00019999,2]
[365120622,1749475840029,-648.58683407,0.00019999,2]
[365120624,1749475840039,-197.8861117,0.0002,2]
[365120626,1749475840052,-20918.84830978,0.0002,3]
[365120628,1749475840061,-3348285.07442372,0.0002,3]
[365120630,1749475840070,-1196.6641308,0.0002,2]
[365120631,1749475840079,-2132429.64858674,0.0002,2]
[365120632,1749475840106,-354.05687384,0.0002,2]
[365120640,1749475840671,-538.00769881,0.0002,2]
[365120641,1749475840683,-2863669.82690515,0.0002,2]
[365120642,1749475840692,-9990.47884228,0.0002,2]
[365120643,1749475840702,-10947.57703136,0.0002,14]
[365120644,1749475840711,-2835.50646755,0.0002,7]
[365120645,1749475840720,-11898.80763443,0.0002,2]
[365120646,1749475840730,-511.23581544,0.0002,7]
[365120647,1749475840740,-3014.0684314,0.0002,2]
[365120648,1749475840749,-1000.0,0.0002,2]
[365120649,1749475840759,-250.0,0.0002,2]
[365120650,1749475840769,-250.0,0.0002,2]
[365120651,1749475840778,-250.0,0.0002,2]
[365120652,1749475840787,-250.0,0.0002,2]
[365120653,1749475840797,-250.0,0.0002,2]
[365120654,1749475840806,-250.0,0.0002,2]
[365120655,1749475840816,-150.6,0.0002,2]
[365120656,1749475840825,-504.62595246,0.0002,2]
[365120657,1749475840836,-500.0,0.0002,2]
[365120658,1749475840846,-500.0,0.0002,2]
[365120659,1749475840856,-500.0,0.0002,2]
[365120660,1749475840866,-500.0,0.0002,2]
[365120661,1749475840877,-2718765.47778521,0.0002,2]
[365120662,1749475841117,-505.02,0.0002,2]
[365120663,1749475841937,205.0,0.00017044,2]
[365120684,1749475842535,-5000.0,0.000199,2]
[365120686,1749475842545,-9410.76387749,0.0002,2]
[365120688,1749475842596,-546045.11027793,0.0002,2]
[365120876,1749475845739,-2466.1,0.0002,2]
[365121051,1749475929546,139.02697521,0.00016868,2]
[365121052,1749475929568,1380.85302479,0.00016868,2]
[365121053,1749475937061,1000.0,0.00024,120]
[365121054,1749475940358,1000.0,0.00024,120]
[365121055,1749475961621,500.0,0.0002465,120]
[365121056,1749475969220,500.0,0.0002465,120]
[365121058,1749475970867,-5914.15,0.0001878,2]
[365121059,1749475970899,168.35692129,0.00018699,2]
[365121060,1749475975720,500.0,0.0002465,120]
[365121061,1749475982648,500.0,0.0002465,120]
[365121063,1749476052022,154.0,0.0002465,120]
[365121064,1749476061530,-250.0,0.00018799,2]
[365121065,1749476061556,-250.0,0.00018802,2]
[365121066,1749476061581,-1000.0,0.00018805,2]
[365121067,1749476061607,-500.0,0.00019,2]
[365121068,1749476061632,-1000.0,0.00019,19]
[365121069,1749476061658,-1519.88,0.00019131,2]
[365121070,1749476077100,150.0,0.0001879,2]
[365121071,1749476106844,3681.64307871,0.0001879,2]
[365121073,1749476132016,1000.0,0.00024,120]
[365121074,1749476138671,1000.0,0.00024,120]
[365121075,1749476179688,150.0,0.0002465,120]
[365121076,1749476195144,-300.0,0.00018789,2]
[365121077,1749476195174,-19918.35692129,0.0001879,2]
[365121078,1749476250030,150.0,0.0002465,120]
[365121079,1749476316137,578.37,0.00013699,2]
[365121081,1749476393657,1142.0,0.00024658,120]
[365121082,1749476732608,-1118.51,0.00019205,30]
[365121083,1749476830489,-3663.69499472,0.0002,30]
[365121084,1749476891683,206.0,0.00017348,2]
[365121085,1749476940969,725.692,0.00016717,2]
[365121086,1749476940993,666.218,0.00016717,2]
[365121111,1749477031566,-744.43935329,0.00018556,2]
[365121112,1749477031629,-111.15131476,0.00018556,2]
[365121113,1749477031642,-164.52,0.00018643,2]
[365121114,1749477031654,-643.61472154,0.00018656,2]
[365121115,1749477031667,-1734.8116019,0.00018656,2]
[365121116,1749477031677,-252.54529159,0.00018661,2]
[365121117,1749477031690,-725.07470841,0.00018661,2]
[365121118,1749477031700,-150.0,0.00018734,2]
[365121119,1749477031712,-2271.35,0.00018756,2]
[365121120,1749477031722,-221.46,0.00018763,2]
[365121121,1749477031732,-1200.0,0.00018789,2]
[365121122,1749477031742,-536.63,0.0001879,2]
[365121123,1749477031753,-200.0,0.0001879,2]
[365121124,1749477031763,-300.0,0.0001879,2]
[365121125,1749477031774,-500.0,0.00018791,2]
[365121126,1749477031784,-500.0,0.00018795,2]
[365121127,1749477031795,-311.4,0.000188,2]
[365121128,1749477031805,-1391.91,0.00018981,2]
[365121129,1749477031816,-1957.856,0.00018999,2]
[365121130,1749477031827,-207.4,0.00018999,2]
[365121131,1749477031837,-1000.0,0.00019,19]
[365121132,1749477031847,-250.0,0.00019,2]
[365121133,1749477031858,-2030.296672,0.00019054,2]
[365121134,1749477031869,-722.4312633,0.00019109,2]
[365121135,1749477031891,-1382.98638556,0.00019109,2]
[365121136,1749477031901,-206.0,0.00019126,4]
[365121137,1749477031912,-150.0,0.0001915,2]
[365121138,1749477031922,-2183.31810187,0.00019164,2]
[365121139,1749477031933,-151.0,0.00019178,2]
[365121140,1749477031943,-204.32,0.00019178,2]
[365121141,1749477031953,-500.0,0.00019178,2]
[365121142,1749477031962,-166.4,0.00019183,2]
[365121143,1749477031972,-2264.10087164,0.00019219,2]
[365121144,1749477031982,-2347.87260389,0.00019274,2]
[365121145,1749477031993,-2434.74389024,0.00019329,2]
[365121146,1749477032003,-238.0,0.00019342,2]
[365121147,1749477032013,-300.0,0.00019346,2]
[365121148,1749477032023,-2524.82941417,0.00019384,2]
[365121149,1749477032034,-2378.42632343,0.00019424,2]
[365121150,1749477032044,-2618.2481025,0.00019439,2]
[365121151,1749477032055,-150.0,0.00019492,2]
[365121152,1749477032066,-1332.87325324,0.00019494,2]
[365121153,1749477032105,-1382.25002905,0.00019494,2]
[365121154,1749477032116,-1689.60473557,0.00019524,2]
[365121155,1749477032127,-151.0,0.00019524,2]
[365121156,1749477032137,-151.0,0.00019524,2]
[365121157,1749477032146,-974.45988265,0.00019524,2]
[365121158,1749477032159,-25.54011735,0.00019524,2]
[365121159,1749477032169,-299.17056417,0.00019524,2]
[365121170,1749477037587,-855.59066805,0.00018559,2]
[365121171,1749477037598,-200.82943583,0.00019524,2]
[365121172,1749477037608,-500.0,0.00019524,2]
[365121173,1749477037618,-500.0,0.00019524,2]
[365121174,1749477037706,-500.0,0.00019524,2]
[365121175,1749477037715,-500.0,0.00019524,2]
[365121176,1749477037725,-176.95133195,0.00019524,2]
[365121177,1749477037735,-668.65185757,0.00019524,2]
[365121178,1749477037744,-118.43970659,0.00019524,2]
[365121179,1749477037771,-381.56029341,0.00019524,2]
[365121180,1749477037781,-500.0,0.00019524,2]
[365121181,1749477037791,-151.0,0.00019524,2]
[365121182,1749477037800,-500.0,0.00019524,2]
[365121183,1749477037810,-500.0,0.00019524,2]
[365121184,1749477037819,-500.0,0.00019524,2]
[365121185,1749477037828,-500.0,0.00019524,2]
[365121186,1749477037838,-151.0,0.00019524,2]
[365121187,1749477037848,-500.0,0.00019524,2]
[365121188,1749477037858,-500.0,0.00019524,2]
[365121189,1749477037868,-500.0,0.00019524,2]
[365121190,1749477037877,-500.0,0.00019524,2]
[365121191,1749477037885,-500.0,0.00019524,2]
[365121192,1749477037893,-500.0,0.00019524,2]
[365121193,1749477037900,-500.0,0.00019524,2]
[365121194,1749477037908,-500.0,0.00019524,2]
[365121195,1749477037915,-500.0,0.00019524,2]
[365121196,1749477037923,-500.0,0.00019524,2]
[365121198,1749477037932,-151.0,0.00019524,2]
[365121200,1749477037941,-500.0,0.00019524,2]
[365121202,1749477037950,-500.0,0.00019524,2]
[365121204,1749477037959,-500.0,0.00019524,2]
[365121206,1749477037968,-500.0,0.00019524,2]
[365121208,1749477037977,-500.0,0.00019524,2]
[365121210,1749477037987,-500.0,0.00019524,2]
[365121212,1749477037995,-500.0,0.00019524,2]
[365121214,1749477038005,-500.0,0.00019524,2]
[365121216,1749477038014,-500.0,0.00019524,2]
[365121218,1749477038023,-500.0,0.00019524,2]
[365121220,1749477038032,-500.0,0.00019524,2]
[365121222,1749477038041,-500.0,0.00019524,2]
[365121224,1749477038051,-500.0,0.00019524,2]
[365121226,1749477038060,-500.0,0.00019524,2]
[365121228,1749477038069,-500.0,0.00019524,2]
[365121230,1749477038078,-500.0,0.00019524,2]
[365121232,1749477038087,-500.0,0.00019524,2]
[365121234,1749477038097,-500.0,0.00019524,2]
[365121236,1749477038108,-300.0,0.00019524,2]
[365121238,1749477038118,-500.0,0.00019524,2]
[365121240,1749477038128,-300.0,0.00019524,2]
[365121242,1749477038138,-500.0,0.00019524,2]
[365121244,1749477038147,-300.0,0.00019524,2]
[365121246,1749477038157,-500.0,0.00019524,2]
[365121248,1749477038167,-500.0,0.00019524,2]
[365121250,1749477038176,-300.0,0.00019524,2]
[365121252,1749477038186,-500.0,0.00019524,2]
[365121254,1749477038195,-300.0,0.00019524,2]
[365121256,1749477038204,-500.0,0.00019524,2]
[365121258,1749477038212,-300.0,0.00019524,2]
[365121260,1749477038222,-500.0,0.00019524,2]
[365121262,1749477038231,-300.0,0.00019524,2]
[365121264,1749477038240,-500.0,0.00019524,2]
[365121266,1749477038250,-300.0,0.00019524,2]
[365121268,1749477038259,-300.0,0.00019524,2]
[365121270,1749477038269,-300.0,0.00019524,2]
[365121272,1749477038278,-300.0,0.00019524,2]
[365121274,1749477038287,-300.0,0.00019524,2]
[365121276,1749477038296,-300.0,0.00019524,2]
[365121278,1749477038305,-300.0,0.00019524,2]
[365121280,1749477038315,-300.0,0.00019524,2]
[365121282,1749477038324,-300.0,0.00019524,2]
[365121284,1749477038333,-2815.58284374,0.00019549,2]
[365121286,1749477038344,-648.0,0.00019562,2]
[365121288,1749477038355,-490.461507,0.00019599,2]
[365121289,1749477038364,-1089.87420965,0.00019604,2]
[365121291,1749477038374,-150.0,0.000197,2]
[365121293,1749477038383,-150.0,0.00019726,2]
[365121295,1749477038393,-156.587,0.00019726,2]
[365121297,1749477038402,-150.0,0.00019785,2]
[365121300,1749477038413,-1000.0,0.00019796,2]
[365121301,1749477038422,-305.0101,0.00019798,2]
[365121303,1749477038431,-1000.0,0.00019814,2]
[365121305,1749477038440,-500.0,0.0001984,2]
[365121307,1749477038450,-200.0,0.0001984,2]
[365121309,1749477038459,-319.04836641,0.00019895,2]
[365121312,1749477038468,-267.5072657,0.00019895,2]
[365121313,1749477038477,-827.62432235,0.00019895,2]
[365121315,1749477038487,-5000.0,0.00019896,2]
[365121317,1749477038496,-162.66484013,0.00019898,2]
[365121319,1749477038505,-500.0,0.000199,2]
[365121321,1749477038514,-8055.1769,0.000199,2]
[365121323,1749477038523,-2000.0,0.000199,2]
[365121325,1749477038532,-1464.2548,0.000199,2]
[365121327,1749477038542,-159.85641746,0.000199,2]
[365121329,1749477038551,-681.94170818,0.000199,2]
[365121331,1749477038564,-162.66484013,0.000199,2]
[365121333,1749477038573,-1570.41089238,0.000199,2]
[365121335,1749477038582,-1000.0,0.000199,2]
[365121337,1749477038591,-2384.03173568,0.000199,2]
[365121339,1749477038600,-175.38629093,0.00019938,2]
[365121341,1749477038611,-1527.254,0.00019954,2]
[365121343,1749477038620,-500.0,0.00019965,2]
[365121345,1749477038629,-150.0,0.00019965,2]
[365121347,1749477038639,-500.0,0.00019965,2]
[365121349,1749477038650,-150.0,0.00019965,2]
[365121350,1749477038660,-150.0,0.00019965,2]
[365121353,1749477038670,-150.0,0.00019965,2]
[365121354,1749477038679,-150.0,0.00019965,2]
[365121356,1749477038689,-150.0,0.00019965,2]
[365121359,1749477038698,-284.31191082,0.00019965,2]
[365121360,1749477038708,-500.0,0.00019965,2]
[365121362,1749477038717,-150.0,0.00019965,2]
[365121364,1749477038726,-150.0,0.00019965,2]
[365121366,1749477038735,-500.0,0.00019965,2]
[365121369,1749477038744,-150.0,0.00019965,2]
[365121370,1749477038754,-250.0,0.00019965,2]
[365121373,1749477038763,-150.0,0.00019967,2]
[365121374,1749477038772,-10640.0,0.00019973,2]
[365121376,1749477038781,-500.0,0.00019973,2]
[365121378,1749477038790,-500.0,0.00019973,2]
[365121380,1749477038800,-500.0,0.00019973,2]
[365121382,1749477038809,-500.0,0.00019973,2]
[365121384,1749477038818,-500.0,0.00019973,2]
[365121386,1749477038827,-500.0,0.00019973,2]
[365121388,1749477038836,-500.0,0.00019973,2]
[365121390,1749477038845,-500.0,0.00019973,2]
[365121392,1749477038855,-500.0,0.00019973,2]
[365121394,1749477038864,-500.0,0.00019973,2]
[365121396,1749477038873,-369.89447705,0.00019973,2]
[365121398,1749477038883,-1000.0,0.00019983,2]
[365121400,1749477038892,-152.58,0.0001999,2]
[365121402,1749477038902,-152.58,0.0001999,2]
[365121404,1749477038911,-152.58,0.0001999,2]
[365121406,1749477038920,-152.58,0.0001999,2]
[365121408,1749477038930,-152.58,0.0001999,2]
[365121410,1749477038939,-152.58,0.0001999,2]
[365121412,1749477038948,-201.54779067,0.0001999,2]
[365121414,1749477038957,-17995.79467154,0.0001999,2]
[365121416,1749477038966,-152.58,0.0001999,2]
[365121418,1749477038976,-152.58,0.0001999,2]
[365121420,1749477038985,-152.58,0.0001999,2]
[365121422,1749477038994,-201.54779067,0.0001999,2]
[365121423,1749477039002,-500.0,0.00019992,2]
[365121426,1749477039012,-150.0,0.00019992,2]
[365121428,1749477039022,-500.0,0.00019992,2]
[365121430,1749477039031,-150.0,0.00019992,2]
[365121432,1749477039041,-150.0,0.00019992,2]
[365121434,1749477039051,-150.0,0.00019992,2]
[365121436,1749477039060,-500.0,0.00019992,2]
[365121438,1749477039069,-150.0,0.00019992,2]
[365121439,1749477039079,-200.0,0.00019992,2]
[365121442,1749477039089,-500.0,0.00019992,2]
[365121443,1749477039099,-399.43520239,0.00019994,2]
[365121445,1749477039109,-500.0,0.00019994,2]
[365121447,1749477039119,-500.0,0.00019994,2]
[365121449,1749477039128,-500.0,0.00019994,2]
[365121451,1749477039137,-500.0,0.00019994,2]
[365121454,1749477039147,-216.07185155,0.00019994,2]
[365121455,1749477039157,-500.0,0.00019994,2]
[365121457,1749477039166,-500.0,0.00019994,2]
[365121460,1749477039177,-500.0,0.00019994,2]
[365121462,1749477039186,-500.0,0.00019994,2]
[365121464,1749477039197,-500.0,0.00019994,2]
[365121466,1749477039207,-500.0,0.00019994,2]
[365121468,1749477039217,-595.64260219,0.00019994,2]
[365121470,1749477039226,-380.11873746,0.00019994,2]
[365121472,1749477039235,-500.0,0.00019994,2]
[365121474,1749477039244,-500.0,0.00019994,2]
[365121476,1749477039253,-500.0,0.00019994,2]
[365121478,1749477039263,-500.0,0.00019994,2]
[365121480,1749477039273,-500.0,0.00019994,2]
[365121482,1749477039283,-500.0,0.00019994,2]
[365121484,1749477039293,-500.0,0.00019994,2]
[365121486,1749477039302,-250.0,0.00019994,2]
[365121488,1749477039312,-500.0,0.00019994,2]
[365121490,1749477039321,-848.99,0.00019994,2]
[365121492,1749477039330,-500.0,0.00019994,2]
[365121494,1749477039339,-249494.03062707,0.00019995,2]
[365121496,1749477039350,-848.99,0.00019995,2]
[365121498,1749477039361,-848.99,0.00019995,2]
[365121500,1749477039371,-500.0,0.00019995,2]
[365121502,1749477039380,-500.0,0.00019995,2]
[365121504,1749477039391,-4430.6744698,0.00019996,2]
[365121506,1749477039401,-276963.1255844,0.00019996,2]
[365121508,1749477039411,-3260.6907125,0.00019996,2]
[365121511,1749477039421,-9458.1050107,0.00019996,2]
[365121513,1749477039431,-1861.8922813,0.00019996,2]
[365121516,1749477039440,-9868.0603013,0.00019996,2]
[365121519,1749477039450,-51465.7193747,0.00019996,2]
[365121522,1749477039460,-32723.0801404,0.00019996,2]
[365121525,1749477039469,-1750.0,0.00019998,2]
[365121528,1749477039479,-733.7698476,0.00019999,2]
[365121531,1749477039489,-238.43857337,0.00019999,2]
[365121534,1749477039499,-666.0,0.00019999,2]
[365121537,1749477039509,-300.0,0.00019999,2]
[365121540,1749477039518,-300.0,0.00019999,2]
[365121543,1749477039527,-300.0,0.00019999,2]
[365121546,1749477039537,-300.0,0.00019999,2]
[365121549,1749477039547,-2000.0,0.00019999,2]
[365121552,1749477039557,-2000.0,0.00019999,2]
[365121554,1749477039570,-2000.0,0.00019999,2]
[365121558,1749477039580,-1000.0,0.00019999,2]
[365121561,1749477039590,-568.36,0.00019999,2]
[365121563,1749477039599,-2003.28265023,0.00019999,2]
[365121565,1749477039611,-150.0,0.00019999,2]
[365121567,1749477039620,-848.99,0.00019999,2]
[365121569,1749477039629,-848.99,0.00019999,2]
[365121572,1749477039640,-848.99,0.00019999,2]
[365121574,1749477039650,-848.99,0.00019999,2]
[365121577,1749477039659,-848.99,0.00019999,2]
[365121580,1749477039668,-848.99,0.00019999,2]
[365121583,1749477039678,-848.99,0.00019999,2]
[365121586,1749477039687,-848.99,0.00019999,2]
[365121587,1749477039696,-848.99,0.00019999,2]
[365121589,1749477039706,-848.99,0.00019999,2]
[365121591,1749477039715,-848.99,0.00019999,2]
[365121593,1749477039724,-848.99,0.00019999,2]
[365121596,1749477039735,-848.99,0.00019999,2]
[365121599,1749477039745,-848.99,0.00019999,2]
[365121602,1749477039754,-848.99,0.00019999,2]
[365121605,1749477039763,-848.99,0.00019999,2]
[365121608,1749477039773,-848.99,0.00019999,2]
[365121611,1749477039781,-848.99,0.00019999,2]
[365121614,1749477039790,-848.99,0.00019999,2]
[365121617,1749477039799,-848.99,0.00019999,2]
[365121620,1749477039808,-849.16511368,0.00019999,2]
[365121623,1749477039818,-500.0,0.00019999,2]
[365121626,1749477039827,-500.0,0.00019999,2]
[365121629,1749477039836,-500.0,0.00019999,2]
[365121630,1749477039845,-500.0,0.00019999,2]
[365121633,1749477039855,-500.0,0.00019999,2]
[365121636,1749477039864,-500.0,0.00019999,2]
[365121640,1749477039874,-500.0,0.00019999,2]
[365121643,1749477039883,-500.0,0.00019999,2]
[365121645,1749477039892,-648.58683407,0.00019999,2]
[365121648,1749477039901,-261.26650278,0.0002,2]
[365121651,1749477039910,-833.29909032,0.0002,3]
[365121654,1749477039918,-20918.84830978,0.0002,3]
[365121656,1749477039926,-282442.32092337,0.0002,3]
[365121665,1749477039961,-3065842.75350035,0.0002,3]
[365121667,1749477039971,-2696201.40046162,0.0002,2]
[365121671,1749477039986,-715.89999,0.0002,2]
[365121796,1749477040623,-331.07,0.0002,2]
[365121799,1749477040638,-5626788.20486528,0.0002,2]
[365121802,1749477040650,-1671.5480584,0.0002,2]
[365122200,1749477042799,-345.72393828,0.0002,2]
[365122211,1749477042858,-1666.25736656,0.0002,2]
[365122307,1749477043582,150.0,0.00018,2]
[365122550,1749477046084,-855.59066805,0.00018561,2]
[365122552,1749477046094,-6936.8856088,0.00019785,2]
[365122554,1749477046103,-3350.68372315,0.0002,2]
[365122561,1749477046162,-5212.4,0.0002,2]
[365122564,1749477046182,-30468.16709915,0.0002,2]
[365122566,1749477046193,-664.95,0.0002,2]
[365122916,1749477068038,115.474,7.945e-05,2]
[365122917,1749477068062,931.692,7.945e-05,2]
[365122918,1749477068087,931.692,7.945e-05,2]
[365122919,1749477068112,931.692,7.945e-05,2]
[365122920,1749477068143,931.692,7.945e-05,2]
[365122921,1749477068170,931.692,7.945e-05,2]
[365122922,1749477068194,918.747046,7.945e-05,2]
[365122923,1749477105038,978.69,0.00019205,30]
[365122925,1749477249964,-267.17095201,0.00018854,2]
[365122926,1749477320591,500.0,0.0002465,120]
[365122927,1749477327468,500.0,0.0002465,120]
[365122928,1749477337879,12.944954,0.00013699,2]
[365122929,1749477337906,536.505046,0.00013699,2]
[365122932,1749477424356,500.0,0.0002465,120]
[365122933,1749477430732,500.0,0.0002465,120]
[365122934,1749477437301,500.0,0.0002465,120]
[365122935,1749477443269,500.0,0.0002465,120]
[365122936,1749477600907,395.186954,0.000179,2]
[365122937,1749477600930,34.83708549,0.000179,2]
[365122941,1749477971720,202.0,0.00017903,2]
[365122942,1749478107316,694.85491451,0.00016724,2]
[365122943,1749478107345,677.71508549,0.00016724,2]
[365122944,1749478141438,2119.0,0.00024658,120]
[365122946,1749478195797,856.35,0.00019205,30]
[365122970,1749478231861,-187.37,0.0001862,2]
[365122972,1749478231871,-341.04,0.00018632,2]
[365122973,1749478231881,-162.52,0.00018673,2]
[365122975,1749478231892,-817.9,0.00018684,2]
[365122977,1749478231902,-527.76710268,0.00018692,2]
[365122981,1749478231932,-672.23289732,0.00018692,2]
[365122983,1749478231942,-379.02940881,0.00018693,2]
[365122985,1749478231953,-2502.27926151,0.00018693,2]
[365122986,1749478231965,-2771.08872644,0.00018693,2]
[365122998,1749478232230,-1194.37260324,0.00018693,2]
[365123000,1749478232240,-1000.0,0.00018694,2]
[365123002,1749478232250,-300.0,0.00018799,2]
[365123004,1749478232260,-300.0,0.00018799,2]
[365123006,1749478232269,-1701.0826247,0.000188,2]
[365123009,1749478232293,-476.7379184,0.000188,2]
[365123127,1749478237731,-711.5732736,0.000188,2]
[365123128,1749478237789,-4208.9061833,0.000188,2]
[365123129,1749478237800,-150.0,0.0001882,7]
[365123130,1749478237809,-11333.23,0.00018827,2]
[365123131,1749478237819,-379.29,0.00018851,2]
[365123132,1749478237828,-23632.82904799,0.00018854,2]
[365123133,1749478237837,-201.58556635,0.000189,2]
[365123134,1749478237847,-201.58556635,0.00018971,2]
[365123135,1749478237856,-1372.57,0.00018988,2]
[365123136,1749478237866,-151.0,0.00018999,2]
[365123137,1749478237875,-1000.0,0.00018999,2]
[365123138,1749478237885,-1957.856,0.00018999,2]
[365123139,1749478237895,-151.0,0.00018999,2]
[365123140,1749478237905,-500.0,0.00018999,2]
[365123141,1749478237915,-500.0,0.00018999,2]
[365123142,1749478237925,-500.0,0.00018999,2]
[365123143,1749478237934,-500.0,0.00018999,2]
[365123144,1749478237943,-500.0,0.00018999,2]
[365123145,1749478237953,-668.65185757,0.00018999,2]
[365123146,1749478237963,-500.0,0.00018999,2]
[365123147,1749478237972,-500.0,0.00018999,2]
[365123148,1749478237982,-500.0,0.00018999,2]
[365123149,1749478237993,-500.0,0.00018999,2]
[365123150,1749478238003,-649.33892291,0.00018999,2]
[365123151,1749478238013,-500.0,0.00018999,2]
[365123152,1749478238023,-500.0,0.00018999,2]
[365123153,1749478238035,-151.0,0.00018999,2]
[365123154,1749478238046,-363.0817012,0.00018999,2]
[365123155,1749478238056,-500.0,0.00018999,2]
[365123156,1749478238066,-500.0,0.00018999,2]
[365123157,1749478238075,-500.0,0.00018999,2]
[365123158,1749478238085,-500.0,0.00018999,2]
[365123159,1749478238095,-500.0,0.00018999,2]
[365123160,1749478238104,-621.26511227,0.00018999,2]
[365123161,1749478238114,-300.0,0.00018999,2]
[365123162,1749478238123,-300.0,0.00018999,2]
[365123163,1749478238133,-300.0,0.00018999,2]
[365123164,1749478238143,-300.0,0.00018999,2]
[365123165,1749478238152,-207.4,0.00018999,2]
[365123167,1749478238162,-500.0,0.00019,2]
[365123169,1749478238171,-2300.0,0.00019,2]
[365123171,1749478238181,-814.46987214,0.00019,12]
[365123173,1749478238190,-250.0,0.00019011,2]
[365123175,1749478238199,-201.58556635,0.00019043,2]
[365123177,1749478238208,-1957.85600002,0.00019054,2]
[365123179,1749478238217,-201.58556635,0.00019114,2]
[365123181,1749478238227,-151.0,0.00019178,2]
[365123183,1749478238237,-163.45,0.00019178,2]
[365123203,1749478238497,-201.58556635,0.00019186,2]
[365123204,1749478238507,-165.73,0.00019221,2]
[365123205,1749478238517,-201.58556635,0.00019257,2]
[365123207,1749478238527,-201.58556635,0.00019329,2]
[365123209,1749478238536,-201.58556635,0.000194,2]
[365123211,1749478238545,-201.58556635,0.00019471,2]
[365123213,1749478238555,-201.58556635,0.00019543,2]
[365123215,1749478238568,-151.0,0.00019547,2]
[365123217,1749478238578,-151.0,0.00019547,2]
[365123219,1749478238587,-1000.0,0.00019548,2]
[365123221,1749478238597,-459.03546,0.00019599,2]
[365123223,1749478238606,-201.58556635,0.00019614,2]
[365123225,1749478238615,-202.0,0.00019657,4]
[365123227,1749478238625,-201.58556635,0.00019686,2]
[365123229,1749478238634,-150.0,0.00019722,2]
[365123231,1749478238644,-156.587,0.00019726,2]
[365123233,1749478238654,-150.0,0.00019728,2]
[365123235,1749478238663,-150.0,0.00019733,2]
[365123237,1749478238673,-150.0,0.00019735,2]
[365123239,1749478238682,-150.0,0.00019741,2]
[365123241,1749478238691,-150.0,0.00019741,2]
[365123243,1749478238701,-150.0,0.00019741,2]
[365123245,1749478238710,-1000.0,0.00019743,2]
[365123246,1749478238720,-1000.0,0.00019744,2]
[365123248,1749478238729,-150.0,0.00019744,2]
[365123250,1749478238739,-150.0,0.00019744,2]
[365123252,1749478238749,-150.0,0.00019744,2]
[365123254,1749478238758,-150.0,0.00019746,2]